[Event "XI Paracin Festival 2018"]
[Site "Paracin"]
[Date "2018.07.07"]
[Round "3"]
[White "Ikeda, Junta"]
[Black "Parnali, S Dharia"]
[Result "1/2-1/2"]
[ECO "D34"]
[WhiteElo "2437"]
[BlackElo "2170"]
[Annotator "NA"]
[PlyCount "57"]
[EventDate "2018.07.06"]
[EventType "swiss"]
[EventCountry "SRB"]
[SourceTitle "playchess.com"]
[Source "ChessBase"]
[SourceQuality "1"]
[TimeControl "5400+30"]

1. Nf3 {[%emt 0:00:31]} Nf6 {[%emt 0:00:15]} 2. g3 {[%emt 0:00:09]} d5 {[%emt 0:00:32]} 3. Bg2 {[%emt 0:00:05]} e6 {[%emt 0:01:10]} 4. c4 {[%emt 0:00:40]} c5 {[%emt 0:00:07]} 5. cxd5 {[%emt 0:01:46]} exd5 {[%emt 0:00:07]} 6. d4 {[%emt 0:00:03]} Nc6 {[%emt 0:00:11]} 7. O-O {[%emt 0:01:40]} Be7 {[%emt 0:00:39]} 8. Nc3 {[%emt 0:00:17]} O-O {[%emt 0:00:15]} 9. Bg5 {[%emt 0:00:19]} c4 {[%emt 0:00:08]} 10. Ne5 {[%emt 0:01:23]} Be6 {[%emt 0:00:47]} 11. e3 {[%emt 0:02:14]} Qa5 {[%emt 0:10:14]} 12. f4 {[%emt 0:03:10]} Rad8 {[%emt 0:00:27]} 13. f5 {[%emt 0:06:01]} Bc8 {[%emt 0:00:07]} 14. Bxf6 {[%emt 0:01:40]} Bxf6 {[%emt 0:02:40]} 15. Ng4 {[%emt 0:00:46]} Ne7 {[%emt 0:01:15]} 16. Nxf6+ {[%emt 0:02:02]} gxf6 {[%emt 0:00:10]} 17. Qh5 {[%emt 0:09:52]} Qb6 {[%emt 0:03:17]} 18. Rab1 {[%emt 0:01:56]} Kh8 {[%emt 0:00:44]} 19. Rf4 {[%emt 0:39:18]} Rg8 {[%emt 0:02:50]} 20. Bh3 {[%emt 0:02:33]} Rg7 {[%emt 0:00:46]} 21. Qe2 {[%emt 0:05:34]} Qc6 {[%emt 0:02:52]} 22. Qd2 {[%emt 0:07:52]} b5 {[%emt 0:00:50]} 23. Ne2 {[%emt 0:00:24]} Qb6 {[%emt 0:01:26]} 24. Rbf1 {[%emt 0:02:33]} Rg5 {[%emt 0:00:56]} 25. g4 {[%emt 0:01:37]} b4 {[%emt 0:02:14]} 26. Ng3 {[%emt 0:00:17]} Ba6 {[%emt 0:05:19]} 27. Rc1 {[%emt 0:01:13]} Rgg8 {[%emt 0:02:35]} 28. Bg2 {[%emt 0:01:23]} Rc8 {[%emt 0:03:18]} 29. Qf2 {[%emt 0:03:18]} 1/2-1/2

[Event "XI Paracin Festival 2018"]
[Site "Paracin"]
[Date "2018.07.07"]
[Round "3"]
[White "Radovanovic, Nikola"]
[Black "Perunovic, Milos"]
[Result "1/2-1/2"]
[ECO "D00"]
[WhiteElo "2425"]
[BlackElo "2596"]
[Annotator "ChessBase"]
[PlyCount "64"]
[EventDate "2018.07.06"]
[EventType "swiss"]
[EventCountry "SRB"]
[SourceTitle "playchess.com"]
[Source "ChessBase"]
[SourceQuality "1"]
[TimeControl "5400+30"]

1. d4 {[%emt 0:01:53]} d5 {[%emt 0:01:47]} 2. Bf4 {[%emt 0:00:09]} c5 {[%emt 0:01:37]} 3. e3 {[%emt 0:00:28]} Nc6 {[%emt 0:02:44]} 4. Nf3 {[%emt 0:00:39]} cxd4 {[%emt 0:02:22]} 5. exd4 {[%emt 0:00:52]} Bf5 {[%emt 0:04:54]} 6. c3 {[%emt 0:05:59]} e6 {[%emt 0:00:52]} 7. Nbd2 {[%emt 0:00:39]} Bd6 {[%emt 0:08:33]} 8. Bg3 {[%emt 0:02:04]} Nf6 {[%emt 0:01:25]} 9. Be2 {[%emt 0:02:24]} h6 {[%emt 0:07:07]} 10. O-O {[%emt 0:03:39]} O-O {[%emt 0:05:52]} 11. Re1 {[%emt 0:03:44]} Ne4 {[%emt 0:06:29]} 12. Bxd6 {[%emt 0:10:32]} Nxd6 {[%emt 0:03:02]} 13. h3 {[%emt 0:05:27]} Rc8 {[%emt 0:03:27]} 14. Nb3 {[%emt 0:09:33]} a5 {[%emt 0:09:47]} 15. Bd3 {[%emt 0:13:16]} Bxd3 {[%emt 0:03:28]} 16. Qxd3 {[%emt 0:00:55]} Nc4 {[%emt 0:04:41]} 17. Rab1 {[%emt 0:04:44]} b6 {[%emt 0:08:28]} 18. Nbd2 {[%emt 0:09:19]} Nd6 {[%emt 0:01:34]} 19. Ne5 {[%emt 0:07:48]} Nxe5 {[%emt 0:01:11]} 20. Rxe5 {[%emt 0:00:32]} Rc7 {[%emt 0:06:23]} 21. Re3 {[%emt 0:02:42]} Qf6 {[%emt 0:02:31]} 22. Rf3 {[%emt 0:01:03]} Qe7 {[%emt 0:00:12]} 23. a4 {[%emt 0:02:50]} Rb8 {[%emt 0:01:13]} 24. Ra1 {[%emt 0:00:27]} Qe8 {[%emt 0:03:55]} 25. Re3 {[%emt 0:00:55]} b5 {[%emt 0:04:32]} 26. axb5 {[%emt 0:00:21]} Rxb5 {[%emt 0:00:15]} 27. b3 {[%emt 0:00:54]} Qc8 {[%emt 0:01:24]} 28. Ra4 {[%emt 0:04:15]} Qd7 {[%emt 0:01:56]} 29. Qc2 {[%emt 0:01:23]} Nf5 {[%emt 0:00:44]} 30. Rd3 {[%emt 0:00:33]} Rc8 {[%emt 0:01:33]} 31. Qa2 {[%emt 0:01:39]} Qc7 {[%emt 0:00:38]} 32. g3 {[%emt 0:01:30]} Rcb8 {[%emt 0:00:35]} 1/2-1/2

[Event "XI Paracin Festival 2018"]
[Site "Paracin"]
[Date "2018.07.07"]
[Round "3"]
[White "Gadimbayli, Abdulla"]
[Black "Savanovic, Vuk"]
[Result "1-0"]
[ECO "B31"]
[WhiteElo "2420"]
[BlackElo "2294"]
[Annotator "NA"]
[PlyCount "103"]
[EventDate "2018.07.06"]
[EventType "swiss"]
[EventCountry "SRB"]
[SourceTitle "playchess.com"]
[Source "ChessBase"]
[SourceQuality "1"]
[TimeControl "5400+30"]

1. e4 {[%emt 0:00:00]} c5 {[%emt 0:00:00]} 2. Nf3 {[%emt 0:00:00]} Nc6 {[%emt 0:00:00]} 3. Bb5 {[%emt 0:00:00]} g6 {[%emt 0:00:00]} 4. Bxc6 {[%emt 0:00:07]} dxc6 {[%emt 0:00:06]} 5. d3 {[%emt 0:00:11]} Bg7 {[%emt 0:00:05]} 6. h3 {[%emt 0:00:05]} Qc7 {[%emt 0:00:17]} 7. O-O {[%emt 0:01:01]} e5 {[%emt 0:01:04]} 8. Be3 {[%emt 0:00:52]} b6 {[%emt 0:00:09]} 9. a3 {[%emt 0:00:58]} a5 {[%emt 0:00:09]} 10. Nbd2 {[%emt 0:00:45]} Ne7 {[%emt 0:00:47]} 11. Nc4 {[%emt 0:00:39]} a4 {[%emt 0:00:55]} 12. b3 {[%emt 0:00:51]} Ba6 {[%emt 0:08:35]} 13. Nfd2 {[%emt 0:01:03]} Nc8 {[%emt 0:10:45]} 14. bxa4 {[%emt 0:14:56]} Bxc4 {[%emt 0:03:48]} 15. Nxc4 {[%emt 0:01:47]} Rxa4 {[%emt 0:00:18]} 16. Qb1 {[%emt 0:00:17]} O-O {[%emt 0:03:38]} 17. Qb3 {[%emt 0:07:36]} Ra6 {[%emt 0:02:33]} 18. Rfb1 {[%emt 0:07:05]} Re8 {[%emt 0:03:11]} 19. a4 {[%emt 0:03:09]} Qa7 {[%emt 0:23:22]} 20. Ra3 {[%emt 0:09:44]} Bf8 {[%emt 0:07:19]} 21. Qb2 {[%emt 0:26:41]} Rxa4 {[%emt 0:19:29]} 22. Rxa4 {[%emt 0:00:06]} Qxa4 {[%emt 0:00:09]} 23. Ra1 {[%emt 0:00:17]} Qb4 {[%emt 0:00:04]} 24. Qxb4 {[%emt 0:00:49]} cxb4 {[%emt 0:00:05]} 25. Ra8 {[%emt 0:00:19]} Nd6 {[%emt 0:04:59]} 26. Rxe8 {[%emt 0:00:06]} Nxe8 {[%emt 0:00:04]} 27. Nxe5 {[%emt 0:06:46]} c5 {[%emt 0:04:51]} 28. Nd7 {[%emt 0:00:03]} Nc7 {[%emt 0:01:56]} 29. Nxb6 {[%emt 0:00:36]} Ne6 {[%emt 0:04:34]} 30. Na4 {[%emt 0:02:56]} f6 {[%emt 0:00:40]} 31. Kf1 {[%emt 0:03:45]} g5 {[%emt 0:00:37]} 32. Ke2 {[%emt 0:00:20]} Bd6 {[%emt 0:00:09]} 33. Kf3 {[%emt 0:02:10]} Kf7 {[%emt 0:00:53]} 34. h4 {[%emt 0:01:02]} h5 {[%emt 0:00:32]} 35. hxg5 {[%emt 0:01:17]} fxg5 {[%emt 0:00:13]} 36. e5 {[%emt 0:00:31]} Bxe5 {[%emt 0:00:08]} 37. Nxc5 {[%emt 0:00:13]} g4+ {[%emt 0:01:11]} 38. Ke4 {[%emt 0:00:13]} h4 {[%emt 0:00:17]} 39. Nxe6 {[%emt 0:04:57]} Kxe6 {[%emt 0:00:01]} 40. f4 {[%emt 0:00:36]} gxf3 {[%emt 0:00:41]} 41. Kxf3 {[%emt 0:00:04]} Kf5 {[%emt 0:00:24]} 42. Bc5 {[%emt 0:01:01]} Bc3 {[%emt 0:00:20]} 43. Be7 {[%emt 0:00:15]} Be1 {[%emt 0:00:50]} 44. Ke2 {[%emt 0:00:05]} Ke6 {[%emt 0:00:09]} 45. Kxe1 {[%emt 0:00:42]} Kxe7 {[%emt 0:00:05]} 46. Ke2 {[%emt 0:00:19]} Ke6 {[%emt 0:00:08]} 47. d4 {[%emt 0:00:04]} Kd6 {[%emt 0:01:16]} 48. Ke3 {[%emt 0:00:06]} Ke6 {[%emt 0:00:08]} 49. Ke4 {[%emt 0:00:04]} Kd6 {[%emt 0:00:06]} 50. d5 {[%emt 0:00:15]} Kd7 {[%emt 0:00:07]} 51. Kd4 {[%emt 0:00:07]} Kc7 {[%emt 0:00:20]} 52. Ke5 1-0

[Event "XI Paracin Festival 2018"]
[Site "Paracin"]
[Date "2018.07.07"]
[Round "3"]
[White "Abramovic, Bosko"]
[Black "Matovic, Mihajlo Z"]
[Result "1-0"]
[ECO "E09"]
[WhiteElo "2409"]
[BlackElo "2256"]
[Annotator "NA"]
[PlyCount "68"]
[EventDate "2018.07.06"]
[EventType "swiss"]
[EventCountry "SRB"]
[SourceTitle "playchess.com"]
[Source "ChessBase"]
[SourceQuality "1"]
[TimeControl "5400+30"]

1. d4 {[%emt 0:00:00]} Nf6 {[%emt 0:00:18]} 2. g3 {[%emt 0:00:00]} d5 {[%emt 0:00:30]} 3. Bg2 {[%emt 0:00:04]} e6 {[%emt 0:00:08]} 4. Nf3 {[%emt 0:00:10]} Be7 {[%emt 0:00:05]} 5. O-O {[%emt 0:00:08]} O-O {[%emt 0:00:04]} 6. c4 {[%emt 0:00:28]} Nbd7 {[%emt 0:00:13]} 7. Qc2 {[%emt 0:01:16]} c6 {[%emt 0:00:06]} 8. Nbd2 {[%emt 0:00:08]} b6 {[%emt 0:00:05]} 9. e4 {[%emt 0:00:07]} Bb7 {[%emt 0:00:05]} 10. b3 {[%emt 0:00:04]} Rc8 {[%emt 0:00:28]} 11. Bb2 {[%emt 0:02:47]} c5 {[%emt 0:00:37]} 12. exd5 {[%emt 0:01:39]} exd5 {[%emt 0:00:16]} 13. dxc5 {[%emt 0:01:00]} Nxc5 {[%emt 0:01:29]} 14. Rad1 {[%emt 0:00:56]} Qe8 {[%emt 0:09:12]} 15. Ng5 {[%emt 0:06:54]} Ncd7 {[%emt 0:19:56]} 16. Rfe1 {[%emt 0:08:40]} h6 {[%emt 0:00:59]} 17. Nh3 {[%emt 0:00:15]} Qd8 {[%emt 0:07:54]} 18. Nf4 {[%emt 0:04:22]} Rc7 {[%emt 0:05:02]} 19. Qf5 {[%emt 0:02:30]} dxc4 {[%emt 0:03:13]} 20. Bxb7 {[%emt 0:04:06]} c3 {[%emt 0:05:22]} 21. Bxc3 {[%emt 0:00:02]} Rxb7 {[%emt 0:04:14]} 22. Ne4 {[%emt 0:04:27]} Qc8 {[%emt 0:14:11]} 23. Re3 {[%emt 0:35:00]} Nxe4 {[%emt 0:03:40]} 24. Qxe4 {[%emt 0:00:08]} Nc5 {[%emt 0:01:49]} 25. Qf3 {[%emt 0:00:21]} Bg5 {[%emt 0:01:14]} 26. Bb4 {[%emt 0:03:37]} Rd7 {[%emt 0:03:42]} 27. Rxd7 {[%emt 0:02:27]} Qxd7 {[%emt 0:00:50]} 28. Bxc5 {[%emt 0:00:34]} bxc5 {[%emt 0:02:07]} 29. Rd3 {[%emt 0:01:25]} Qf5 {[%emt 0:00:28]} 30. Nd5 {[%emt 0:00:46]} Qe5 {[%emt 0:02:24]} 31. h4 {[%emt 0:00:50]} Bd8 {[%emt 0:00:51]} 32. Kg2 {[%emt 0:01:54]} Qa1 {[%emt 0:03:32]} 33. Qe2 {[%emt 0:02:39]} Ba5 {[%emt 0:00:04]} 34. Rd1 {[%emt 0:00:27]} Bd8 1-0

[Event "XI Paracin Festival 2018"]
[Site "Paracin"]
[Date "2018.07.07"]
[Round "3"]
[White "Rahul, Srivatshav P"]
[Black "Winkelman, Albert"]
[Result "1-0"]
[ECO "A08"]
[WhiteElo "2397"]
[BlackElo "2183"]
[Annotator "NA"]
[PlyCount "49"]
[EventDate "2018.07.06"]
[EventType "swiss"]
[EventCountry "SRB"]
[SourceTitle "playchess.com"]
[Source "ChessBase"]
[SourceQuality "1"]
[TimeControl "5400+30"]

1. Nf3 Nf6 2. g3 d5 3. Bg2 e6 4. O-O Be7 5. d3 O-O 6. Nbd2 c5 7. e4 Nc6 8. Re1 Qc7 9. e5 Nd7 10. Qe2 b6 11. Nf1 Bb7 12. Bf4 Rfc8 13. h4 d4 14. N1h2 Nb4 15. Ng5 Bxg2 16. Kxg2 c4 17. Rad1 cxd3 18. cxd3 h6 19. Ne4 Nd5 20. Qh5 Nc5 21. Bxh6 gxh6 22. Ng4 Bf8 23. Nxh6+ Bxh6 24. Qxh6 Qb7 25. Kg1 1-0

[Event "XI Paracin Festival 2018"]
[Site "Paracin"]
[Date "2018.07.07"]
[Round "3"]
[White "Wadsworth, Matthew J"]
[Black "Cvetkovic, Srdjan"]
[Result "1-0"]
[ECO "A14"]
[WhiteElo "2377"]
[BlackElo "2262"]
[Annotator "NA"]
[PlyCount "111"]
[EventDate "2018.07.06"]
[EventType "swiss"]
[EventCountry "SRB"]
[SourceTitle "playchess.com"]
[Source "ChessBase"]
[SourceQuality "1"]
[TimeControl "5400+30"]

1. c4 {[%emt 0:02:48]} e6 {[%emt 0:00:00]} 2. g3 {[%emt 0:00:06]} d5 {[%emt 0:01:07]} 3. Bg2 {[%emt 0:00:06]} Nf6 {[%emt 0:00:46]} 4. Nf3 {[%emt 0:00:11]} Be7 {[%emt 0:00:38]} 5. O-O {[%emt 0:00:08]} O-O {[%emt 0:00:34]} 6. b3 {[%emt 0:00:05]} c5 {[%emt 0:05:22]} 7. Bb2 {[%emt 0:00:17]} Nc6 {[%emt 0:02:13]} 8. e3 {[%emt 0:00:11]} b6 {[%emt 0:04:31]} 9. Nc3 {[%emt 0:00:53]} Bb7 {[%emt 0:02:26]} 10. cxd5 {[%emt 0:01:02]} Nxd5 {[%emt 0:02:13]} 11. Nxd5 {[%emt 0:02:10]} Qxd5 {[%emt 0:05:57]} 12. d4 {[%emt 0:00:06]} Rad8 {[%emt 0:14:46]} 13. Ne5 {[%emt 0:02:31]} Qd6 {[%emt 0:03:15]} 14. dxc5 {[%emt 0:00:49]} Qxc5 {[%emt 0:07:45]} 15. Nd7 {[%emt 0:01:55]} Qg5 {[%emt 0:01:53]} 16. h4 {[%emt 0:01:36]} Qh6 {[%emt 0:01:37]} 17. Rc1 {[%emt 0:04:53]} e5 {[%emt 0:20:00]} 18. Qg4 {[%emt 0:01:02]} Rfe8 {[%emt 0:04:22]} 19. Rfd1 {[%emt 0:03:36]} Ba8 {[%emt 0:02:50]} 20. Nxe5 {[%emt 0:04:07]} Nxe5 {[%emt 0:00:25]} 21. Bxe5 {[%emt 0:00:15]} Bxg2 {[%emt 0:01:04]} 22. Kxg2 {[%emt 0:00:16]} Rxd1 {[%emt 0:01:19]} 23. Rxd1 {[%emt 0:02:27]} Qc6+ {[%emt 0:00:50]} 24. Qf3 {[%emt 0:01:00]} Qe6 {[%emt 0:02:15]} 25. Qd5 {[%emt 0:01:07]} Bf6 {[%emt 0:04:05]} 26. Qxe6 {[%emt 0:01:50]} Rxe6 {[%emt 0:00:09]} 27. Bb8 {[%emt 0:05:06]} a6 {[%emt 0:00:52]} 28. Rd6 {[%emt 0:00:44]} h5 {[%emt 0:02:23]} 29. Rxe6 {[%emt 0:01:36]} fxe6 {[%emt 0:00:01]} 30. Kf3 {[%emt 0:00:45]} Kf7 {[%emt 0:00:14]} 31. Ke4 {[%emt 0:00:54]} g6 {[%emt 0:01:05]} 32. Bc7 b5 33. Be5 Bd8 34. Bc3 Be7 35. Be1 Bf6 36. Kd3 Be5 37. Bc3 Bc7 38. Bb4 Be5 39. e4 Bf6 40. Bc5 Ke8 41. Bd4 Be7 42. Ke3 Kf7 43. Kf4 Bd6+ 44. Kg5 {[%emt 0:30:46]} Be7+ {[%emt 0:09:49]} 45. Kh6 {[%emt 0:00:36]} Bf8+ {[%emt 0:00:04]} 46. Kh7 {[%emt 0:00:05]} Bb4 {[%emt 0:00:18]} 47. Be3 {[%emt 0:06:35]} Bd6 {[%emt 0:00:20]} 48. Bd2 {[%emt 0:00:47]} Bc5 {[%emt 0:00:12]} 49. Be1 {[%emt 0:00:05]} Bd4 {[%emt 0:00:35]} 50. f3 {[%emt 0:01:04]} Be3 {[%emt 0:00:28]} 51. g4 {[%emt 0:01:10]} Bf4 {[%emt 0:00:39]} 52. Bf2 {[%emt 0:00:10]} Bd2 {[%emt 0:02:16]} 53. Bb6 {[%emt 0:01:41]} Bf4 {[%emt 0:00:21]} 54. gxh5 {[%emt 0:01:49]} gxh5 {[%emt 0:00:01]} 55. Bd8 {[%emt 0:00:09]} Be3 {[%emt 0:04:55]} 56. Bg5 {[%emt 0:00:12]} 1-0

[Event "XI Paracin Festival 2018"]
[Site "Paracin"]
[Date "2018.07.07"]
[Round "3"]
[White "Harvey, Marcus R"]
[Black "Lorparizangeneh, Shahin"]
[Result "1/2-1/2"]
[ECO "A04"]
[WhiteElo "2362"]
[BlackElo "2493"]
[Annotator "ChessBase"]
[PlyCount "96"]
[EventDate "2018.07.06"]
[EventType "swiss"]
[EventCountry "SRB"]
[SourceTitle "playchess.com"]
[Source "ChessBase"]
[SourceQuality "1"]
[TimeControl "5400+30"]

1. Nf3 {[%emt 0:04:16]} c5 {[%emt 0:00:12]} 2. b3 {[%emt 0:00:08]} d5 {[%emt 0:01:41]} 3. e3 {[%emt 0:00:25]} a6 {[%emt 0:07:17]} 4. Bb2 {[%emt 0:01:38]} Nc6 {[%emt 0:00:18]} 5. Be2 {[%emt 0:00:50]} Nf6 {[%emt 0:00:59]} 6. O-O {[%emt 0:00:08]} g6 {[%emt 0:04:05]} 7. d4 {[%emt 0:00:31]} cxd4 {[%emt 0:03:26]} 8. Nxd4 {[%emt 0:00:05]} Bg7 {[%emt 0:00:32]} 9. c4 {[%emt 0:00:43]} O-O {[%emt 0:00:58]} 10. cxd5 {[%emt 0:00:31]} Nxd4 {[%emt 0:01:37]} 11. Qxd4 {[%emt 0:00:09]} Qxd5 {[%emt 0:01:43]} 12. Bf3 {[%emt 0:02:14]} Qxd4 {[%emt 0:03:53]} 13. Bxd4 {[%emt 0:00:20]} Nd7 {[%emt 0:00:20]} 14. Bxg7 {[%emt 0:01:09]} Kxg7 {[%emt 0:01:30]} 15. Nc3 {[%emt 0:01:19]} Ne5 {[%emt 0:01:57]} 16. Rfd1 {[%emt 0:04:18]} Nxf3+ {[%emt 0:06:26]} 17. gxf3 {[%emt 0:00:08]} Be6 {[%emt 0:00:49]} 18. Ne4 {[%emt 0:00:08]} Rfd8 {[%emt 0:06:20]} 19. Rxd8 {[%emt 0:01:10]} Rxd8 {[%emt 0:00:02]} 20. Rc1 {[%emt 0:00:11]} Bf5 {[%emt 0:04:21]} 21. Kg2 {[%emt 0:02:22]} Bxe4 {[%emt 0:06:08]} 22. fxe4 {[%emt 0:00:17]} Rd2 {[%emt 0:00:01]} 23. Rc7 {[%emt 0:00:07]} Rxa2 {[%emt 0:00:13]} 24. Rxe7 {[%emt 0:03:13]} b5 {[%emt 0:00:15]} 25. e5 {[%emt 0:00:03]} Kf8 {[%emt 0:00:39]} 26. Ra7 {[%emt 0:00:11]} h6 {[%emt 0:02:07]} 27. b4 {[%emt 0:02:55]} Rb2 {[%emt 0:04:22]} 28. Rxa6 {[%emt 0:00:30]} Rxb4 {[%emt 0:01:11]} 29. Rb6 {[%emt 0:02:23]} Rb1 {[%emt 0:06:57]} 30. h4 {[%emt 0:00:36]} h5 {[%emt 0:01:32]} 31. e6 {[%emt 0:02:57]} fxe6 {[%emt 0:09:07]} 32. Rxe6 {[%emt 0:00:06]} Kf7 {[%emt 0:00:03]} 33. Rb6 {[%emt 0:00:06]} b4 {[%emt 0:01:04]} 34. f4 {[%emt 0:02:27]} b3 {[%emt 0:01:45]} 35. Kf3 {[%emt 0:00:05]} b2 {[%emt 0:03:13]} 36. Ke4 {[%emt 0:00:04]} Kg7 {[%emt 0:00:29]} 37. Rb5 {[%emt 0:00:40]} Kf7 {[%emt 0:02:02]} 38. Ke5 {[%emt 0:00:56]} Re1 {[%emt 0:01:03]} 39. Rb7+ {[%emt 0:00:05]} Kg8 {[%emt 0:00:04]} 40. Rxb2 {[%emt 0:00:04]} Rxe3+ {[%emt 0:00:04]} 41. Kf6 {[%emt 0:00:06]} Rg3 {[%emt 0:00:12]} 42. Rb8+ {[%emt 0:01:41]} Kh7 {[%emt 0:00:04]} 43. Rb7+ {[%emt 0:00:05]} Kh8 {[%emt 0:00:21]} 44. Kf7 {[%emt 0:08:23]} Rg4 {[%emt 0:00:26]} 45. Ra7 {[%emt 0:02:06]} Kh7 {[%emt 0:01:28]} 46. Kf8+ {[%emt 0:00:09]} Kh8 {[%emt 0:00:09]} 47. Kf7 {[%emt 0:00:39]} Kh7 {[%emt 0:00:18]} 48. Kf8+ {[%emt 0:00:05]} Kh8 {[%emt 0:00:05]} 1/2-1/2

[Event "XI Paracin Festival 2018"]
[Site "Paracin"]
[Date "2018.07.07"]
[Round "3"]
[White "Radovic, Luka"]
[Black "Tan, Justin"]
[Result "0-1"]
[ECO "A04"]
[WhiteElo "2344"]
[BlackElo "2481"]
[Annotator "ChessBase"]
[PlyCount "132"]
[EventDate "2018.07.06"]
[EventType "swiss"]
[EventCountry "SRB"]
[SourceTitle "playchess.com"]
[Source "ChessBase"]
[SourceQuality "1"]
[TimeControl "5400+30"]

1. Nf3 {[%emt 0:00:00]} c5 {[%emt 0:00:44]} 2. c4 {[%emt 0:00:57]} Nc6 {[%emt 0:00:08]} 3. g3 {[%emt 0:00:46]} g6 {[%emt 0:00:08]} 4. Bg2 {[%emt 0:00:07]} Bg7 {[%emt 0:00:04]} 5. O-O {[%emt 0:00:11]} d6 {[%emt 0:00:38]} 6. Nc3 {[%emt 0:01:49]} e6 {[%emt 0:00:15]} 7. a3 {[%emt 0:04:25]} Nge7 {[%emt 0:00:19]} 8. Rb1 {[%emt 0:01:48]} O-O {[%emt 0:01:07]} 9. d3 {[%emt 0:01:40]} b6 {[%emt 0:01:00]} 10. Bd2 {[%emt 0:02:26]} Bb7 {[%emt 0:02:39]} 11. b4 {[%emt 0:04:14]} Qd7 {[%emt 0:01:53]} 12. e3 {[%emt 0:14:17]} Rac8 {[%emt 0:02:59]} 13. Qa4 {[%emt 0:02:37]} Ba8 {[%emt 0:06:52]} 14. Rfc1 {[%emt 0:04:15]} Rfd8 {[%emt 0:02:30]} 15. Nb5 {[%emt 0:02:21]} Bb7 {[%emt 0:19:19]} 16. Qd1 {[%emt 0:09:41]} Rb8 {[%emt 0:08:16]} 17. Bc3 {[%emt 0:03:53]} Ne5 {[%emt 0:06:02]} 18. Ba1 {[%emt 0:14:53]} Nxf3+ {[%emt 0:09:17]} 19. Bxf3 {[%emt 0:00:11]} Bxa1 {[%emt 0:00:05]} 20. Rxa1 {[%emt 0:00:35]} d5 {[%emt 0:00:25]} 21. Qe2 {[%emt 0:05:19]} d4 {[%emt 0:02:36]} 22. exd4 {[%emt 0:02:09]} a6 {[%emt 0:01:08]} 23. Nc3 {[%emt 0:02:32]} Qxd4 {[%emt 0:03:36]} 24. Bxb7 {[%emt 0:02:25]} Rxb7 {[%emt 0:00:02]} 25. Ne4 {[%emt 0:01:43]} Qxd3 {[%emt 0:07:57]} 26. Qxd3 {[%emt 0:00:52]} Rxd3 {[%emt 0:00:42]} 27. bxc5 {[%emt 0:00:20]} Rd4 {[%emt 0:00:22]} 28. f3 {[%emt 0:01:24]} bxc5 {[%emt 0:00:20]} 29. Nxc5 {[%emt 0:01:50]} Rb2 {[%emt 0:00:10]} 30. Rab1 {[%emt 0:03:45]} Rxb1 {[%emt 0:00:38]} 31. Rxb1 {[%emt 0:00:05]} Rxc4 {[%emt 0:00:02]} 32. Nxa6 {[%emt 0:00:27]} Ra4 {[%emt 0:00:20]} 33. Rb8+ {[%emt 0:00:41]} Kg7 {[%emt 0:00:02]} 34. Rb7 {[%emt 0:00:10]} Rxa6 {[%emt 0:04:06]} 35. Rxe7 {[%emt 0:00:22]} Rxa3 {[%emt 0:00:02]} 36. f4 {[%emt 0:01:22]} Ra2 {[%emt 0:00:26]} 37. Rb7 {[%emt 0:00:11]} h6 {[%emt 0:00:38]} 38. Rb5 {[%emt 0:00:56]} Kf6 {[%emt 0:00:39]} 39. Rb4 {[%emt 0:03:11]} Kf5 {[%emt 0:02:46]} 40. Rb7 {[%emt 0:00:54]} f6 {[%emt 0:02:12]} 41. Rb5+ {[%emt 0:00:18]} Kg4 {[%emt 0:01:18]} 42. Rb6 {[%emt 0:02:34]} Re2 {[%emt 0:02:15]} 43. Kf1 {[%emt 0:01:06]} Kf3 {[%emt 0:00:11]} 44. Rb3+ {[%emt 0:00:27]} Re3 {[%emt 0:00:01]} 45. Rb2 {[%emt 0:00:09]} h5 {[%emt 0:00:43]} 46. Rf2+ {[%emt 0:00:11]} Ke4 {[%emt 0:00:52]} 47. Kg2 {[%emt 0:00:06]} Kd3 {[%emt 0:02:31]} 48. Kf1 {[%emt 0:01:27]} Ke4 {[%emt 0:02:17]} 49. Kg2 {[%emt 0:00:19]} g5 {[%emt 0:02:04]} 50. fxg5 {[%emt 0:00:16]} fxg5 {[%emt 0:00:01]} 51. Ra2 {[%emt 0:00:55]} e5 {[%emt 0:01:27]} 52. Ra4+ {[%emt 0:00:41]} Kf5 {[%emt 0:00:47]} 53. Ra2 {[%emt 0:00:27]} Rd3 {[%emt 0:03:55]} 54. Kf2 {[%emt 0:01:04]} h4 {[%emt 0:02:08]} 55. gxh4 {[%emt 0:01:07]} gxh4 {[%emt 0:00:28]} 56. Rb2 {[%emt 0:01:15]} Kf4 {[%emt 0:00:10]} 57. Ra2 {[%emt 0:00:55]} e4 {[%emt 0:00:01]} 58. Rb2 {[%emt 0:00:39]} h3 {[%emt 0:00:23]} 59. Ke2 {[%emt 0:01:38]} Ra3 {[%emt 0:00:20]} 60. Kf2 {[%emt 0:01:09]} Ra1 {[%emt 0:00:26]} 61. Rb8 {[%emt 0:01:06]} Ra2+ {[%emt 0:00:38]} 62. Kg1 {[%emt 0:00:32]} Kf3 {[%emt 0:01:07]} 63. Rb1 {[%emt 0:00:52]} Rg2+ {[%emt 0:00:21]} 64. Kh1 {[%emt 0:00:04]} Rd2 {[%emt 0:00:32]} 65. Re1 {[%emt 0:00:29]} e3 {[%emt 0:00:26]} 66. Kg1 {[%emt 0:00:22]} e2 {[%emt 0:00:14]} 0-1